bitfinex/quotes_SOLUSD_20240912
["timestamp","ask_amount","ask_price","bid_price","bid_amount"]
[1726147845131,23.776884,134.89,134.84,0.261127]
[1726147845538,1.85408342,134.88,134.84,0.261127]
[1726147846213,23.776884,134.89,134.84,0.261127]
[1726147846422,1.85417041,134.88,134.84,0.261127]
[1726147846629,23.776884,134.89,134.84,0.261127]
[1726147848133,1.85417891,134.88,134.84,0.261127]
[1726147849220,1.85417582,134.87,134.84,0.261127]
[1726147849425,23.776884,134.89,134.84,0.261127]
[1726147849623,23.776884,134.87,134.84,0.261127]
[1726147849926,23.776884,134.85,134.84,0.261127]
[1726147851226,44.4562,134.9,134.84,0.261127]
[1726147851534,23.776884,134.88,134.84,0.261127]
[1726147851732,23.776884,134.86,134.84,0.261127]
[1726147852133,23.902374,134.87,134.84,0.261127]
[1726147854757,23.776884,134.85,134.84,0.261127]
[1726147854948,25.75723405,134.85,134.84,0.261127]
[1726147855144,97.17583405,134.85,134.84,0.261127]
[1726147855450,97.30132405,134.85,134.84,0.261127]
[1726147855753,23.776884,134.81,134.79,0.2701833]
[1726147855937,23.776884,134.8,134.79,0.3333785]
[1726147856249,25.63248196,134.8,134.79,0.3333785]
[1726147856449,0.12549,134.84,134.79,0.3333785]
[1726147856450,23.902374,134.84,134.79,0.3333785]
[1726147857156,23.776884,134.84,134.79,0.3333785]
[1726147857852,1.85481662,134.83,134.79,0.3333785]
[1726147858059,23.776884,134.84,134.79,0.3333785]
[1726147858060,1.85484713,134.82,134.79,0.3333785]
[1726147858354,23.776884,134.84,134.79,0.3333785]
[1726147858557,26.6345,134.88,134.79,0.3333785]
[1726147859252,28.48905837,134.88,134.79,0.3333785]
[1726147859637,6.6731,134.87,134.79,0.3333785]
[1726147859947,23.776884,134.85,134.79,0.3333785]
[1726147860151,23.776884,134.83,134.79,0.3333785]
[1726147860361,6.6345,134.88,134.79,0.3333785]
[1726147860531,1.85442969,134.87,134.79,0.3333785]
[1726147861060,21.85442969,134.87,134.79,0.3333785]
[1726147861350,28.52752969,134.87,134.79,0.3333785]
[1726147861771,24.027864,134.86,134.79,0.3333785]
[1726147861967,30.701564,134.86,134.79,0.3333785]
[1726147862159,23.776884,134.84,134.79,0.3333785]
[1726147862362,0.12549,134.83,134.79,0.3333785]
[1726147862854,23.776884,134.84,134.79,0.3333785]
[1726147863260,25.63191902,134.84,134.79,0.3333785]
[1726147863444,23.776884,134.84,134.79,0.3333785]
[1726147863947,1.85492429,134.84,134.79,0.3333785]
[1726147864962,6.6345,134.88,134.79,0.3333785]
[1726147865193,23.776884,134.86,134.79,0.3333785]
[1726147865349,1.85464779,134.85,134.79,0.3333785]
[1726147865544,23.776884,134.84,134.79,0.3333785]
[1726147865853,1.85464732,134.83,134.79,0.3333785]
[1726147866054,1.85464701,134.82,134.79,0.3333785]
[1726147866755,23.776884,134.81,134.79,0.3333785]
[1726147867066,1.85512378,134.8,134.79,0.3333785]
[1726147868052,25.63205479,134.8,134.79,0.3333785]
[1726147868974,23.776884,134.8,134.79,0.3333785]
[1726147870365,74.74456705,134.8,134.79,0.3333785]
[1726147870683,74.87005705,134.8,134.79,0.3333785]
[1726147870896,66.337864,134.8,134.79,0.3333785]
[1726147871199,74.87018829,134.8,134.79,0.3333785]
[1726147871497,73.014364,134.8,134.79,0.3333785]
[1726147872303,74.87018631,134.8,134.79,0.3333785]
[1726147872605,45.75826463,134.8,134.79,0.3333785]
[1726147872778,45.63277463,134.8,134.79,0.3333785]
[1726147872976,23.776884,134.8,134.79,0.3333785]
[1726147873285,6.0333,134.82,134.79,0.3333785]
[1726147873486,6.1461,134.86,134.79,0.3333785]
[1726147873700,1.85486072,134.85,134.79,0.3333785]
[1726147874465,16.1723,134.87,134.79,0.3333785]
[1726147874665,35.5731,134.9,134.79,0.3333785]
[1726147874666,28.9821,134.89,134.79,0.3333785]
[1726147874995,22.8056,134.9,134.8,23.14622938]
[1726147875176,1.85455664,134.88,134.8,23.14622938]
[1726147875581,6.5915,134.9,134.81,20.12549]
[1726147876095,6.5915,134.9,134.81,20.1886852]
[1726147876306,8.44566837,134.9,134.81,20.1886852]
[1726147876514,1.85416742,134.89,134.81,20.1886852]
[1726147877487,6.3923881,134.94,134.84,23.14622938]
[1726147877727,0.2069881,134.94,134.88,23.14622938]
[1726147877881,0.2069881,134.94,134.89,20.0]
[1726147878300,0.2069881,134.94,134.9,0.12549]
[1726147878511,0.2069881,134.94,134.91,20.0]
[1726147878812,0.2069881,134.94,134.92,0.12549]
[1726147879021,0.2069881,134.94,134.92,23.27171938]
[1726147879186,0.2069881,134.94,134.93,0.12549]
[1726147879588,0.2701833,134.98,134.93,0.12549]
[1726147879589,0.2701833,134.98,134.93,43.902374]
[1726147879787,0.2701833,134.98,134.96,20.0]
[1726147879987,0.2701833,134.98,134.94,0.12549]
[1726147880294,0.2701833,134.98,134.92,20.0]
[1726147880695,2.12309282,134.98,134.9,21.9995]
[1726147880898,0.2701833,134.98,134.87,23.14622938]
[1726147881104,2.12315342,134.98,134.89,23.14622938]
[1726147881419,23.776884,134.97,134.88,0.12549]
[1726147881607,23.776884,134.95,134.88,0.12549]
[1726147881915,1.85309815,134.94,134.88,0.12549]
[1726147882127,23.776884,134.97,134.88,20.12549]
[1726147882505,1.85292266,134.97,134.88,57.11729631]
[1726147882710,1.85292266,134.97,134.89,0.12549]
[1726147886307,0.2701833,134.98,134.9,36.99180631]
[1726147886507,2.12288187,134.98,134.91,20.25098]
[1726147887120,0.2701833,134.98,134.93,20.0]
[1726147887304,0.2701833,134.98,134.94,0.12549]
[1726147887715,0.2701833,134.98,134.94,0.25098]
[1726147888026,0.2701833,134.98,134.96,36.99180631]
[1726147888225,0.2701833,134.98,134.97,20.25098]
[1726147888521,0.2701833,134.98,134.97,0.12549]
[1726147888697,0.2701833,134.98,134.96,0.12549]
[1726147889228,0.2701833,134.98,134.93,20.0]
[1726147889820,0.2701833,134.98,134.94,0.12549]
[1726147890024,0.2701833,134.98,134.97,20.0]
[1726147890224,0.2701833,134.98,134.97,20.25098]
[1726147894907,0.2701833,135.02,135.0,20.0]
[1726147895714,0.2701833,135.02,134.97,20.12549]
[1726147895916,0.2701833,135.02,134.98,0.25098]
[1726147896498,0.2701833,135.02,134.97,20.0]
[1726147896698,0.2701833,135.02,134.95,20.0]
[1726147898037,0.2701833,135.02,134.96,0.12549]
[1726147898331,0.2701833,135.02,134.95,20.0]
[1726147898511,0.2701833,135.02,134.94,52.41029631]
[1726147898709,0.2701833,135.02,134.95,0.12549]
[1726147898910,0.2701833,135.02,134.94,52.28480631]
[1726147899106,23.776884,135.01,134.92,36.99180631]
[1726147899310,1.85223662,135.0,134.92,36.99180631]
[1726147899525,23.776884,135.01,134.92,36.99180631]
[1726147899832,1.852235,135.0,134.93,20.0]
[1726147900129,6.2639,135.01,134.91,20.0]
[1726147901214,6.2639,135.01,134.92,0.25098]
[1726147901623,23.776884,135.0,134.92,0.25098]
[1726147902134,23.776884,135.0,134.92,0.12549]
[1726147902816,1.85237235,134.99,134.91,20.0]
[1726147903032,23.776884,135.0,134.91,20.0]
[1726147903717,8.0966533,135.01,134.91,20.0]
[1726147904119,8.0966533,135.01,134.92,0.25098]
[1726147904529,6.2639,135.01,134.92,0.25098]
[1726147904737,8.11639196,135.01,134.94,20.0]
[1726147904942,6.2639,135.01,134.95,23.36319609]
[1726147905139,6.2639,135.01,134.96,20.0]
[1726147905341,6.2639,135.01,134.97,0.25098]
[1726147905828,8.11580275,135.01,134.97,0.25098]
[1726147906030,6.2639,135.01,134.97,0.25098]
[1726147907730,0.2701833,135.02,134.98,20.0]
[1726147907929,0.2701833,135.02,134.99,23.36319609]
[1726147908232,0.2701833,135.02,134.99,0.12549]
[1726147908435,0.2701833,135.02,134.98,20.0]
[1726147908615,0.2701833,135.02,134.99,0.12549]
[1726147909309,0.2701833,135.02,134.99,23.23770609]
[1726147911009,0.2701833,135.02,135.0,0.12549]
[1726147911211,0.2701833,135.02,134.99,0.12549]
[1726147911522,0.2701833,135.02,134.99,0.25098]
[1726147911838,0.2701833,135.02,134.99,23.36319609]
[1726147912028,0.2701833,135.02,135.0,20.0]
[1726147912811,0.2701833,135.02,135.01,23.23770609]
[1726147913116,0.2701833,135.06,135.02,20.0]
[1726147913321,0.2701833,135.06,135.03,0.25098]
[1726147914062,0.2701833,135.06,135.01,23.11221609]
[1726147914345,0.2701833,135.06,135.02,20.0]
[1726147914923,0.2701833,135.06,135.0,20.0]
[1726147915126,0.2701833,135.06,135.01,23.11221609]
[1726147915430,0.2701833,135.06,135.02,0.25098]
[1726147915630,0.2701833,135.06,135.02,20.25098]
[1726147918353,0.2846312,135.06,135.02,20.25098]
[1726147920345,0.2846312,135.06,135.02,26.11090251]
[1726147921359,0.2846312,135.06,135.03,5.85992251]
[1726147921945,0.2846312,135.06,135.05,43.11221609]
[1726147922148,0.2629267,135.1,135.05,49.2231186]
[1726147922353,0.2629267,135.1,135.07,23.11221609]
[1726147922658,0.2629267,135.1,135.08,5.85992251]
[1726147922955,0.2629267,135.1,135.09,0.12549]
[1726147923136,0.2629267,135.1,135.08,5.85992251]
[1726147923339,0.2629267,135.1,135.09,5.85992251]
[1726147923654,0.2629267,135.1,135.09,5.98541251]
[1726147923863,0.2629267,135.1,135.09,5.85133357]
[1726147924646,0.2629267,135.1,135.09,0.12549]
[1726147924973,0.2629267,135.1,135.09,5.97517611]
[1726147925256,2.1133217,135.14,135.09,5.97517611]
[1726147925257,0.2629267,135.14,135.09,49.2128822]
[1726147925484,0.2629267,135.14,135.11,23.11221609]
[1726147925659,0.2629267,135.14,135.12,20.0]
[1726147925861,0.2629267,135.14,135.13,43.11221609]
[1726147926065,0.2629267,135.14,135.13,43.23770609]
[1726147927081,0.2629267,135.14,135.13,43.36319609]
[1726147927450,0.2629267,135.19,135.13,72.37862471]
[1726147927654,313.7629267,135.31,135.13,72.37862471]
[1726147927655,260.1517,135.31,135.19,20.0]
[1726147927879,7.01602,135.31,135.21,23.11221609]
[1726147928075,7.01602,135.31,135.22,20.25098]
[1726147928076,0.36432,135.31,135.22,20.25098]
[1726147928276,2.21282575,135.31,135.23,23.11221609]
[1726147928497,0.36432,135.31,135.24,20.25098]
[1726147928791,5.75392,135.32,135.25,23.11221609]
[1726147929116,5.75392,135.32,135.24,20.25098]
[1726147929377,8.49954561,135.31,135.22,20.0]
[1726147929555,1.84814561,135.31,135.22,20.0]
[1726147930074,1.84814561,135.31,135.23,0.25098]
[1726147930560,8.49974561,135.31,135.22,20.0]
[1726147930754,6.6521,135.3,135.19,20.0]
[1726147930952,6.6529,135.28,135.17,36.81273071]
[1726147931183,20.0,135.31,135.17,36.81273071]
[1726147931389,23.776884,135.29,135.17,36.81273071]
[1726147931558,45.672084,135.25,135.14,36.81273071]
[1726147931756,29.841384,135.23,135.14,36.81273071]
[1726147931975,1.84932797,135.22,135.14,36.81273071]
[1726147932354,29.841384,135.23,135.14,36.81273071]
[1726147932779,23.776884,135.21,135.11,37.23304911]
[1726147933187,23.776884,135.22,135.11,37.23304911]
[1726147933369,25.62643793,135.22,135.11,37.23304911]
[1726147933685,23.776884,135.22,135.11,37.23304911]
[1726147933893,1.83591117,135.21,135.11,37.23304911]
[1726147934187,1.84932492,135.22,135.14,36.81273071]
[1726147934491,1.84932492,135.22,135.13,20.0]
[1726147934662,23.776884,135.22,135.14,0.25098]
[1726147935076,6.0645,135.23,135.14,0.25098]
[1726147935277,7.91377111,135.23,135.14,0.25098]
[1726147935486,7.91365744,135.23,135.14,0.25098]
[1726147935991,7.91365744,135.23,135.15,20.0]
[1726147936190,7.91365744,135.23,135.16,0.25098]
[1726147937397,6.0645,135.23,135.12,20.0]
[1726147937691,6.0645,135.23,135.15,20.0]
[1726147938604,6.0645,135.23,135.18,20.0]
[1726147938774,15.2408,135.25,135.19,0.25098]
[1726147939884,1.84888522,135.24,135.19,0.25098]
[1726147940295,23.776884,135.24,135.11,0.4203184]
[1726147940501,23.776884,135.22,135.11,0.4203184]
[1726147940696,1.84955827,135.21,135.11,37.23304911]
[1726147941005,1.84953394,135.21,135.11,37.23304911]
[1726147941295,23.776884,135.19,135.11,0.4203184]
[1726147941470,39.192984,135.17,135.11,0.4203184]
[1726147941677,17.26621499,135.17,135.11,0.4203184]
[1726147942402,23.776884,135.16,135.11,0.4203184]
[1726147942781,23.776884,135.14,135.11,0.4203184]
[1726147942983,23.776884,135.16,135.11,0.4203184]
[1726147943283,1.8502544,135.15,135.11,0.4203184]
[1726147943484,1.85039319,135.14,135.11,0.4203184]
[1726147943692,23.776884,135.16,135.11,0.4203184]
[1726147944077,1.85013171,135.15,135.11,0.4203184]
[1726147944282,1.85023357,135.14,135.11,0.4203184]
[1726147945175,1.85025408,135.16,135.11,0.4203184]
[1726147946075,23.776884,135.15,135.11,0.4203184]
[1726147946278,23.776884,135.16,135.11,0.4203184]
[1726147946488,1.85024798,135.16,135.11,0.4203184]
[1726147948279,23.776884,135.15,135.11,0.4203184]
[1726147948475,1.85020436,135.14,135.11,0.4203184]
[1726147948703,15.4161,135.17,135.11,0.4203184]
[1726147948704,1.85022612,135.16,135.11,0.4203184]
[1726147950304,1.84998927,135.16,135.11,0.4203184]
[1726147951884,23.776884,135.15,135.11,0.4203184]
[1726147952090,1.85048141,135.14,135.11,0.4203184]
[1726147952500,29.978484,135.13,135.11,0.4203184]
[1726147952703,25.62766081,135.12,135.11,0.4203184]
[1726147953195,69.78015081,135.12,135.11,0.4203184]
[1726147953507,23.776884,135.07,135.04,0.4203184]
[1726147953691,1.85142783,135.06,135.04,0.4203184]
[1726147954113,23.776884,135.05,135.04,0.4203184]
[1726147954297,29.909284,135.05,135.04,0.4203184]
[1726147956119,36.573384,135.05,135.04,0.4203184]
[1726147956291,36.698874,135.05,135.04,0.4203184]
[1726147957409,36.698874,135.05,134.98,0.4203184]
[1726147957410,23.776884,135.02,134.98,0.4203184]
[1726147957917,30.442584,135.02,134.98,0.4203184]
[1726147958085,23.776884,135.02,134.98,0.4203184]
[1726147958493,23.776884,135.03,134.98,0.4203184]
[1726147958687,23.776884,135.04,134.97,0.4810035]
[1726147958891,0.12549,135.03,134.97,0.4810035]
[1726147959324,1.85214041,135.03,134.97,0.4810035]
[1726147959636,21.3639,135.05,134.98,20.0]
[1726147960307,21.3639,135.05,134.99,0.12549]
[1726147960494,1.8516654,135.04,134.99,0.12549]
[1726147961011,1.85170614,135.03,134.97,0.4810035]
[1726147961194,37.6783,135.09,134.97,0.4810035]
[1726147961195,1.85207722,135.06,134.99,20.0]
[1726147961703,22.0305,135.09,134.99,20.0]
[1726147962088,15.3683,135.09,134.99,20.0]
[1726147962311,1.8517224,135.08,134.99,20.0]
[1726147962589,1.85172106,135.07,134.99,20.0]
[1726147963026,23.776884,135.06,134.99,20.0]
[1726147963206,1.8516916,135.06,134.99,20.0]
[1726147963728,25.62857526,135.07,135.0,0.12549]
[1726147964430,25.62857526,135.07,134.99,20.0]
[1726147964632,23.776884,135.07,134.99,20.0]
[1726147964803,1.85144931,135.1,135.01,20.0]
[1726147965003,6.5445,135.11,135.03,36.81273071]
[1726147965206,6.5445,135.11,135.04,20.25098]
[1726147965427,15.9678,135.13,135.04,20.25098]
[1726147966312,6.5509,135.15,135.04,20.25098]
[1726147967132,6.5509,135.15,135.07,20.0]
[1726147967323,1.8505422,135.14,135.07,20.0]
[1726147967642,1.85055094,135.13,135.07,20.0]
[1726147967829,6.5509,135.15,135.07,20.0]
[1726147968836,1.85073086,135.14,135.05,20.0]
[1726147969144,6.6604,135.13,135.05,20.0]
[1726147969427,1.85103023,135.12,135.05,20.0]
[1726147969731,23.776884,135.11,135.05,20.0]
[1726147970118,23.776884,135.12,135.05,20.0]
[1726147970324,1.85109749,135.11,135.05,20.0]
[1726147970508,25.62790172,135.1,135.05,20.0]
[1726147970714,1.85101772,135.1,135.05,20.0]
[1726147971619,23.776884,135.13,135.05,20.0]
[1726147972031,23.776884,135.11,135.05,20.0]
[1726147972341,1.85101184,135.1,135.05,20.0]
[1726147972507,23.776884,135.09,135.01,20.0]
[1726147972841,23.776884,135.07,135.0,15.5661]
[1726147973013,1.85157089,135.06,135.0,15.5661]
[1726147973837,23.776884,135.07,135.0,52.37883071]
[1726147974338,23.776884,135.07,135.01,20.0]
[1726147974638,23.776884,135.05,134.98,6.1511]
[1726147974844,1.85172679,135.04,134.99,0.12549]
[1726147975137,6.1406,135.08,134.99,0.12549]
[1726147975342,23.776884,135.07,134.99,0.12549]
[1726147975543,6.1406,135.08,134.99,0.12549]
[1726147975703,23.776884,135.09,134.99,0.12549]
[1726147976038,23.776884,135.1,134.99,20.25098]
[1726147976419,23.776884,135.08,134.99,20.25098]
[1726147976643,1.85123093,135.07,134.99,20.25098]
[1726147977010,23.776884,135.1,134.99,20.25098]
[1726147977011,1.8512091,135.09,135.02,20.0]
[1726147977340,1.8512091,135.09,135.03,0.25098]
[1726147977565,6.6632,135.07,134.99,20.0]
[1726147977845,1.85175507,135.06,134.98,6.1511]
[1726147978014,35.6219,135.11,134.98,42.96383071]
[1726147978418,30.82329889,135.1,134.98,42.96383071]
[1726147978711,22.31,135.08,134.98,42.96383071]
[1726147978928,25.62855644,135.07,134.99,20.0]
[1726147979336,23.776884,135.07,135.0,0.12549]
[1726147979633,25.62827375,135.09,135.0,0.12549]
[1726147979836,23.776884,135.09,135.0,0.12549]
[1726147980045,23.776884,135.07,135.0,0.12549]
[1726147980235,23.776884,135.07,135.0,0.25098]
[1726147980812,46.086884,135.08,134.99,20.0]
[1726147981015,23.776884,135.05,134.99,20.0]
[1726147981228,23.776884,135.05,135.01,20.0]
[1726147981439,22.31,135.1,135.01,20.0]
[1726147981440,23.776884,135.09,135.01,20.0]
[1726147981739,46.086884,135.09,135.01,20.0]
[1726147982041,23.776884,135.07,134.99,20.0]
[1726147982244,23.776884,135.07,135.0,0.25098]
[1726147982537,46.086884,135.08,134.99,20.0]
[1726147982715,0.12549,135.07,134.99,20.0]
[1726147983116,52.749684,135.08,134.99,20.0]
[1726147983117,46.086884,135.08,134.99,20.0]
[1726147983341,23.902374,135.09,134.99,20.0]
[1726147983535,23.776884,135.09,134.99,20.0]
[1726147984042,23.776884,135.07,135.0,0.25098]
[1726147984542,23.776884,135.1,135.02,20.0]
[1726147984723,23.776884,135.1,135.04,15.0943]
[1726147984926,16.019,135.14,135.04,15.0943]
[1726147984927,16.019,135.14,135.05,20.0]
[1726147985443,6.4739,135.15,135.05,20.0]
[1726147985444,6.4739,135.15,135.06,0.25098]
[1726147985615,1.85077251,135.14,135.05,26.4232]
[1726147986032,6.4739,135.15,135.06,0.25098]
[1726147986229,16.5206832,135.17,135.06,0.25098]
[1726147986230,16.5206832,135.17,135.08,20.0]
[1726147986652,1.85041933,135.16,135.08,20.0]
[1726147987643,23.776884,135.16,135.06,20.12549]
[1726147987822,23.776884,135.14,135.06,20.12549]
[1726147988022,0.0401832,135.17,135.1,36.5538]
[1726147988350,0.0401832,135.17,135.13,20.0]
[1726147988641,0.0401832,135.17,135.12,6.5879]
[1726147989647,0.0401832,135.17,135.13,0.12549]
[1726147991218,0.0401832,135.17,135.12,6.5879]
[1726147992961,0.0401832,135.17,135.12,20.0]
[1726147993167,0.0401832,135.17,135.1,16.5538]
[1726147993540,0.0401832,135.17,135.08,6.17]
[1726147994031,23.776884,135.16,135.08,6.17]
[1726147994236,23.776884,135.14,135.06,15.9094]
[1726147994462,1.85066765,135.13,135.06,15.9094]
[1726147994758,23.776884,135.11,135.06,15.9094]
[1726147995335,13.0402832,135.17,135.06,15.9094]
[1726147995535,23.776884,135.16,135.07,20.0]
[1726147995757,23.776884,135.16,135.05,6.3356]
[1726147995758,23.776884,135.14,135.05,6.3356]
[1726147995965,23.776884,135.12,135.03,16.1365]
[1726147996259,6.78479,135.15,135.03,52.94923071]
[1726147996463,23.902374,135.14,135.03,52.94923071]
[1726147997165,25.7531492,135.14,135.04,20.0]
[1726147997367,6.6602,135.13,135.04,20.0]
[1726147997655,25.75352958,135.12,135.04,20.0]
[1726147998229,32.41432958,135.12,135.03,16.1365]
[1726147998634,1.85123003,135.11,135.03,16.1365]
[1726147998839,30.563174,135.12,135.03,16.1365]
[1726147999170,23.902374,135.12,135.0,36.81273071]
[1726147999466,23.776884,135.14,135.02,36.81273071]
[1726147999647,0.12549,135.13,135.03,0.43014613]
[1726147999838,23.776884,135.11,135.0,20.0]
[1726148000339,23.776884,135.11,135.01,0.25098]
[1726148001256,8.50548564,135.1,135.0,20.0]
[1726148001574,23.776884,135.09,135.0,20.0]
[1726148002181,1.85118101,135.08,135.0,20.0]
[1726148002470,23.776884,135.07,135.0,20.0]
[1726148002675,6.5287,135.1,135.0,20.0]
[1726148002885,23.776884,135.09,135.01,0.25098]
[1726148003049,6.5797,135.14,135.02,20.0]
[1726148003250,6.5797,135.14,135.05,20.0]
[1726148003466,8.43034383,135.14,135.05,20.0]
[1726148003680,6.5797,135.14,135.05,20.0]
[1726148004189,6.5797,135.14,135.03,0.25098]
[1726148004373,1.85107197,135.13,135.02,20.0]
[1726148004577,6.6603,135.13,135.02,20.0]
[1726148004879,15.09058138,135.14,135.02,20.0]
[1726148005056,1.85108138,135.12,135.03,0.12549]
[1726148005253,6.5797,135.14,135.03,0.12549]
[1726148005580,6.5797,135.14,135.05,20.0]
[1726148005751,16.4747,135.15,135.06,15.67248]
[1726148006156,23.134,135.15,135.06,15.67248]
[1726148006371,16.4747,135.15,135.06,15.67248]
[1726148006588,6.5669832,135.17,135.07,20.0]
[1726148006879,6.5669832,135.17,135.08,0.25098]
[1726148007061,0.0401832,135.17,135.08,0.25098]
[1726148007484,0.0401832,135.17,135.11,20.0]
[1726148007782,0.0401832,135.17,135.12,0.25098]
[1726148009249,0.0401832,135.17,135.12,0.12549]
[1726148009454,0.0401832,135.17,135.08,20.0]
[1726148009750,0.0401832,135.17,135.1,36.81273071]
[1726148009989,0.0401832,135.17,135.11,20.25098]
[1726148010780,0.0401832,135.17,135.11,20.12549]
[1726148010955,0.0401832,135.17,135.12,0.12549]
[1726148011366,0.0401832,135.17,135.11,20.12549]
[1726148012066,0.0401832,135.17,135.11,20.0]
[1726148012886,1.8901572,135.17,135.11,20.0]
[1726148013061,0.0401832,135.17,135.11,20.0]
[1726148013383,0.0401832,135.17,135.12,0.12549]
[1726148013987,0.0401832,135.17,135.12,0.25098]
[1726148016363,0.0401832,135.17,135.11,20.0]
[1726148016561,0.0401832,135.17,135.08,36.81273071]
[1726148016861,23.8170672,135.17,135.06,58.65933071]
[1726148017059,23.776884,135.15,135.06,58.65933071]
[1726148017280,1.850522,135.14,135.06,58.65933071]
[1726148017760,30.436084,135.15,135.06,58.65933071]
[1726148017959,23.776884,135.15,135.06,58.65933071]
[1726148018159,25.62737887,135.15,135.06,58.65933071]
[1726148018358,1.85049487,135.14,135.07,20.0]
[1726148018661,23.776884,135.16,135.08,36.81273071]
[1726148019203,23.776884,135.16,135.09,0.25098]
[1726148019204,1.85022417,135.15,135.09,0.25098]
[1726148019383,1.85023264,135.15,135.09,20.12549]
[1726148019578,1.85018187,135.14,135.09,20.12549]
[1726148019956,1.83506199,135.15,135.09,20.12549]
[1726148020161,23.776884,135.16,135.09,20.12549]
[1726148020663,1.8500769,135.15,135.09,20.12549]
[1726148021190,23.776884,135.16,135.09,20.12549]
[1726148021387,22.31,135.15,135.09,20.12549]
[1726148021695,23.776884,135.17,135.09,20.12549]
[1726148022186,1.8502984,135.16,135.09,20.12549]
[1726148022686,24.1318998,135.18,135.09,20.12549]
[1726148022887,1.85009205,135.17,135.09,20.12549]
[1726148023079,0.3550158,135.18,135.1,36.93822071]
[1726148023396,0.3550158,135.18,135.11,20.12549]
[1726148023691,0.3550158,135.18,135.11,20.0]
[1726148023692,2.20500291,135.18,135.11,20.0]
[1726148023889,8.86280291,135.18,135.1,0.12549]
[1726148024100,8.86280291,135.18,135.1,0.25098]
[1726148024475,23.776884,135.17,135.1,0.12549]
[1726148024796,1.85013467,135.16,135.1,0.12549]
[1726148025003,23.776884,135.17,135.1,0.12549]
[1726148025467,7.0129158,135.18,135.1,0.12549]
[1726148025468,24.1318998,135.18,135.1,0.12549]
[1726148026266,1.85013057,135.17,135.1,0.12549]
[1726148026589,23.776884,135.16,135.1,0.12549]
[1726148026888,1.85021557,135.15,135.09,20.0]
[1726148027056,1.85021228,135.14,135.09,20.0]
[1726148027463,1.85021228,135.14,135.08,0.12549]
[1726148027676,1.85021228,135.14,135.08,0.25098]
[1726148027891,23.776884,135.16,135.08,0.25098]
[1726148028284,23.776884,135.17,135.08,0.25098]
[1726148028792,23.776884,135.17,135.09,0.12549]
[1726148029170,1.85021003,135.16,135.09,0.12549]
[1726148029367,23.776884,135.15,135.09,0.12549]
[1726148029587,23.776884,135.15,135.07,20.0]
[1726148029588,1.85036577,135.14,135.07,20.0]
[1726148029767,23.776884,135.15,135.07,20.0]
[1726148030099,1.85044621,135.14,135.07,20.0]
[1726148030666,23.776884,135.15,135.07,20.0]
[1726148030887,25.62732716,135.15,135.07,20.0]
[1726148031596,23.776884,135.15,135.07,20.0]
[1726148031895,1.85044229,135.14,135.07,20.0]
[1726148032869,23.776884,135.15,135.07,20.0]
[1726148033076,23.776884,135.15,135.08,37.06371071]
[1726148033373,23.776884,135.15,135.09,20.0]
[1726148035697,0.3550158,135.18,135.11,20.0]
[1726148035878,0.3550158,135.18,135.12,0.12549]
[1726148036481,0.3550158,135.18,135.13,16.6317]
[1726148037781,0.3550158,135.18,135.06,6.4251]
[1726148037782,2.20488656,135.18,135.1,20.0]
[1726148038079,6.6584,135.17,135.1,20.0]
[1726148038281,7.0128158,135.18,135.1,20.0]
[1726148038498,1.85019098,135.17,135.1,20.0]
[1726148038999,23.776884,135.16,135.1,20.0]
[1726148040006,23.776884,135.16,135.09,16.2243]
[1726148040007,23.776884,135.14,135.09,16.2243]
[1726148040679,32.28692025,135.15,135.09,16.2243]
[1726148041001,23.776884,135.13,135.06,16.0219]
[1726148041213,23.776884,135.11,135.06,16.0219]
[1726148041374,23.776884,135.11,135.03,22.6016]
[1726148041871,1.85077909,135.1,135.03,22.6016]
[1726148042075,23.776884,135.14,135.06,36.89836771]
[1726148042468,1.85033976,135.13,135.06,36.89836771]
[1726148042681,1.85033976,135.13,135.07,20.25098]
[1726148042881,23.776884,135.15,135.07,20.25098]
[1726148043093,1.85034056,135.14,135.07,20.25098]
[1726148043288,1.85033947,135.13,135.07,20.25098]